[Event "*** Titled Tuesday 3|2 Blitz"]
[Site "Chess.com"]
[Date "2015.03.03"]
[Round "8"]
[White "Ar4uha"]
[Black "GMHess"]
[Result "0-1"]
[WhiteElo "2456"]
[BlackElo "2462"]
[TimeControl "180+2"]
[EndTime "12:42:19 PST"]
[Termination "GMHess won by checkmate"]

1. e4 {[%clk 0:03:00]} 1... e5 {[%clk 0:02:56.5]} 2. Nf3 {[%clk 0:03:00.7]} 2...
Nc6 {[%clk 0:02:56.3]} 3. d4 {[%clk 0:02:59]} 3... exd4 {[%clk 0:02:40.4]} 4.
Bc4 {[%clk 0:03:00.5]} 4... Nf6 {[%clk 0:02:38.8]} 5. Ng5 {[%clk 0:03:01.7]}
5... Ne5 {[%clk 0:02:32.4]} 6. Bb3 {[%clk 0:03:02.9]} 6... d5 {[%clk 0:02:13.7]}
7. exd5 {[%clk 0:03:01.5]} 7... Bb4+ {[%clk 0:01:55.3]} 8. c3 {[%clk 0:02:59.5]}
8... dxc3 {[%clk 0:01:54.9]} 9. Nxc3 {[%clk 0:02:51.6]} 9... O-O {[%clk
0:01:47.7]} 10. O-O {[%clk 0:02:52.2]} 10... h6 {[%clk 0:01:33.5]} 11. Nge4
{[%clk 0:02:53.1]} 11... Nxe4 {[%clk 0:01:29.2]} 12. Nxe4 {[%clk 0:02:53.9]}
12... Bf5 {[%clk 0:01:29.8]} 13. Ng3 {[%clk 0:02:51.7]} 13... Bd3 {[%clk
0:01:21.1]} 14. Bf4 {[%clk 0:02:33.4]} 14... Bxf1 {[%clk 0:00:59.3]} 15. Bxe5
{[%clk 0:02:34]} 15... Ba6 {[%clk 0:00:57.4]} 16. Qg4 {[%clk 0:02:34.3]} 16...
Qg5 {[%clk 0:00:54.9]} 17. Qd4 {[%clk 0:02:17.3]} 17... Bc5 {[%clk 0:00:44.5]}
18. Qc3 {[%clk 0:02:07.3]} 18... Bd6 {[%clk 0:00:39.5]} 19. Bd4 {[%clk
0:02:07.1]} 19... Rfe8 {[%clk 0:00:19.1]} 20. h4 {[%clk 0:02:07.1]} 20... Qg4
{[%clk 0:00:19.8]} 21. Bc2 {[%clk 0:02:03.5]} 21... Bxg3 {[%clk 0:00:15.3]} 22.
fxg3 {[%clk 0:02:00.5]} 22... Rad8 {[%clk 0:00:16]} 23. Bb3 {[%clk 0:01:52.7]}
23... Re2 {[%clk 0:00:15.3]} 24. Bd1 {[%clk 0:01:46.1]} 24... Rxd5 {[%clk
0:00:15.6]} 25. Bxe2 {[%clk 0:01:47.5]} 25... Bxe2 {[%clk 0:00:10.7]} 26. Bxa7
{[%clk 0:01:39.1]} 26... Rd3 {[%clk 0:00:11]} 27. Qxc7 {[%clk 0:00:20.3]} 27...
Rxg3 {[%clk 0:00:11.7]} 28. Kf2 {[%clk 0:00:16.3]} 28... Rxg2+ {[%clk
0:00:11.8]} 29. Ke1 {[%clk 0:00:17.8]} 29... Qxh4+ {[%clk 0:00:08.3]} 30. Kd2
{[%clk 0:00:16.2]} 30... Ba6+ {[%clk 0:00:08.8]} 31. Kc3 {[%clk 0:00:16.3]}
31... Qh3+ {[%clk 0:00:09.7]} 32. Kb4 {[%clk 0:00:16]} 32... Rxb2+ {[%clk
0:00:10.4]} 33. Ka4 {[%clk 0:00:14]} 33... Bb5+ {[%clk 0:00:09.8]} 34. Ka5
{[%clk 0:00:11.9]} 34... Qa3+ {[%clk 0:00:11.3]} 35. Kb6 {[%clk 0:00:13.4]}
35... Bc6# {[%clk 0:00:12.7]} 0-1

[Event "*** Titled Tuesday 3|2 Blitz"]
[Site "Chess.com"]
[Date "2015.03.03"]
[Round "8"]
[White "brauliocuarta"]
[Black "Cryptochess"]
[Result "1-0"]
[WhiteElo "2050"]
[BlackElo "2367"]
[TimeControl "180+2"]
[EndTime "12:42:23 PST"]
[Termination "brauliocuarta won by checkmate"]

1. d4 {[%clk 0:03:00]} 1... Nf6 {[%clk 0:02:57.2]} 2. c4 {[%clk 0:02:58.6]} 2...
e6 {[%clk 0:02:59.1]} 3. Nc3 {[%clk 0:02:57.9]} 3... Bb4 {[%clk 0:03:00.5]} 4.
f3 {[%clk 0:02:58.9]} 4... d5 {[%clk 0:03:00.8]} 5. a3 {[%clk 0:02:59.3]} 5...
Be7 {[%clk 0:03:02.3]} 6. e4 {[%clk 0:02:59.3]} 6... dxe4 {[%clk 0:03:04.2]} 7.
fxe4 {[%clk 0:03:00.4]} 7... e5 {[%clk 0:03:05.8]} 8. d5 {[%clk 0:03:01.7]} 8...
Bc5 {[%clk 0:03:07]} 9. Bg5 {[%clk 0:03:02.1]} 9... Bg4 {[%clk 0:03:08.4]} 10.
Nf3 {[%clk 0:02:57.9]} 10... Nbd7 {[%clk 0:03:08.1]} 11. h3 {[%clk 0:02:56.1]}
11... Bxf3 {[%clk 0:03:08.5]} 12. Qxf3 {[%clk 0:02:57.1]} 12... Qe7 {[%clk
0:03:09.5]} 13. Bd3 {[%clk 0:02:56.6]} 13... c6 {[%clk 0:03:07]} 14. g4 {[%clk
0:02:27.4]} 14... Bd4 {[%clk 0:03:01.3]} 15. Bd2 {[%clk 0:02:18.4]} 15... Nc5
{[%clk 0:02:59.9]} 16. Bc2 {[%clk 0:02:15.8]} 16... a5 {[%clk 0:02:53.2]} 17.
O-O-O {[%clk 0:02:07.7]} 17... O-O {[%clk 0:02:48.4]} 18. Ne2 {[%clk 0:02:00.4]}
18... Nfd7 {[%clk 0:02:41.7]} 19. Kb1 {[%clk 0:01:54.9]} 19... a4 {[%clk
0:02:00.8]} 20. Bb4 {[%clk 0:01:47.2]} 20... Rfd8 {[%clk 0:01:17.5]} 21. Nxd4
{[%clk 0:01:33.6]} 21... exd4 {[%clk 0:01:19.4]} 22. Rxd4 {[%clk 0:01:32]} 22...
Ne5 {[%clk 0:01:20.8]} 23. Qf5 {[%clk 0:01:26.4]} 23... g6 {[%clk 0:01:19.3]}
24. Bxc5 {[%clk 0:01:18.2]} 24... Qxc5 {[%clk 0:01:08.6]} 25. Qxe5 {[%clk
0:01:19.2]} 25... b5 {[%clk 0:01:08.5]} 26. cxb5 {[%clk 0:01:10.7]} 26... cxb5
{[%clk 0:01:08.1]} 27. Rf1 {[%clk 0:01:04.9]} 27... Rac8 {[%clk 0:01:07]} 28.
Bd3 {[%clk 0:01:02.5]} 28... b4 {[%clk 0:00:51.7]} 29. Qf6 {[%clk 0:01:03]}
29... Rd7 {[%clk 0:00:50.5]} 30. Rxb4 {[%clk 0:01:02.7]} 30... Qe3 {[%clk
0:00:50]} 31. Qd4 {[%clk 0:00:59.7]} 31... Qxh3 {[%clk 0:00:46.1]} 32. e5 {[%clk
0:00:56.3]} 32... Qg2 {[%clk 0:00:40.6]} 33. d6 {[%clk 0:00:51.1]} 33... Rdd8
{[%clk 0:00:28.3]} 34. Rg1 {[%clk 0:00:51.1]} 34... Qh2 {[%clk 0:00:25.4]} 35.
Rb7 {[%clk 0:00:47.8]} 35... Qd2 {[%clk 0:00:21.5]} 36. Rxf7 {[%clk 0:00:41.4]}
36... Qh2 {[%clk 0:00:13.4]} 37. e6 {[%clk 0:00:37.5]} 37... Qh6 {[%clk
0:00:08.4]} 38. d7 {[%clk 0:00:36.6]} 38... Rb8 {[%clk 0:00:08.6]} 39. e7 {[%clk
0:00:36.4]} 39... Kxf7 {[%clk 0:00:09.1]} 40. Bc4+ {[%clk 0:00:37.3]} 40... Kxe7
{[%clk 0:00:09.9]} 41. Re1+ {[%clk 0:00:37.4]} 41... Kf8 {[%clk 0:00:11.2]} 42.
Qh8# {[%clk 0:00:36.3]} 1-0

[Event "*** Titled Tuesday 3|2 Blitz"]
[Site "Chess.com"]
[Date "2015.03.03"]
[Round "8"]
[White "AlexanderL"]
[Black "EltajSafarli"]
[Result "0-1"]
[WhiteElo "2524"]
[BlackElo "2690"]
[TimeControl "180+2"]
[EndTime "12:42:24 PST"]
[Termination "EltajSafarli won by checkmate"]

1. d4 {[%clk 0:03:00]} 1... Nf6 {[%clk 0:02:58.5]} 2. c4 {[%clk 0:03:00.7]} 2...
g6 {[%clk 0:03:00.4]} 3. Nf3 {[%clk 0:03:01.8]} 3... Bg7 {[%clk 0:03:01.1]} 4.
e3 {[%clk 0:03:03]} 4... O-O {[%clk 0:03:01.6]} 5. Be2 {[%clk 0:03:04.3]} 5...
d5 {[%clk 0:03:02.1]} 6. cxd5 {[%clk 0:03:05.1]} 6... Nxd5 {[%clk 0:03:04]} 7.
e4 {[%clk 0:03:06.5]} 7... Nb6 {[%clk 0:03:04.6]} 8. O-O {[%clk 0:03:07]} 8...
c5 {[%clk 0:03:06]} 9. d5 {[%clk 0:02:37.3]} 9... Bg4 {[%clk 0:03:04.7]} 10.
Nbd2 {[%clk 0:02:31.1]} 10... e6 {[%clk 0:02:58.1]} 11. h3 {[%clk 0:02:25.8]}
11... Bxf3 {[%clk 0:02:48.5]} 12. Bxf3 {[%clk 0:02:27.7]} 12... c4 {[%clk
0:02:47.7]} 13. dxe6 {[%clk 0:02:25.3]} 13... fxe6 {[%clk 0:02:49.6]} 14. e5
{[%clk 0:02:15.3]} 14... N8d7 {[%clk 0:02:48.1]} 15. Bxb7 {[%clk 0:02:09.1]}
15... Rb8 {[%clk 0:02:40.4]} 16. Be4 {[%clk 0:02:09.9]} 16... Nxe5 {[%clk
0:02:41.2]} 17. Nf3 {[%clk 0:02:08.4]} 17... Nxf3+ {[%clk 0:02:35.2]} 18. Bxf3
{[%clk 0:02:08.2]} 18... Qxd1 {[%clk 0:02:32.1]} 19. Bxd1 {[%clk 0:01:45.4]}
19... Nd5 {[%clk 0:02:34]} 20. Bg4 {[%clk 0:01:40.7]} 20... Kf7 {[%clk
0:02:30.1]} 21. Re1 {[%clk 0:01:35.3]} 21... Rfe8 {[%clk 0:02:31]} 22. Re4
{[%clk 0:00:35.2]} 22... c3 {[%clk 0:02:28.4]} 23. bxc3 {[%clk 0:00:34.4]} 23...
Bxc3 {[%clk 0:02:30.3]} 24. Bf4 {[%clk 0:00:30.8]} 24... Bxa1 {[%clk 0:02:22.3]}
25. Bxb8 {[%clk 0:00:31.3]} 25... h5 {[%clk 0:02:23.2]} 26. Bxe6+ {[%clk
0:00:28.2]} 26... Rxe6 {[%clk 0:02:25]} 27. Rxe6 {[%clk 0:00:29.9]} 27... Kxe6
{[%clk 0:02:25.5]} 28. Bxa7 {[%clk 0:00:31.6]} 28... Nc3 {[%clk 0:02:25.8]} 29.
a3 {[%clk 0:00:27.4]} 29... Bb2 {[%clk 0:02:22.4]} 30. Bc5 {[%clk 0:00:28.2]}
30... Kd5 {[%clk 0:02:19.7]} 31. Bf8 {[%clk 0:00:29.3]} 31... Nd1 {[%clk
0:02:13.1]} 32. f3 {[%clk 0:00:19.6]} 32... Bd4+ {[%clk 0:02:13.3]} 33. Kh2
{[%clk 0:00:20.8]} 33... Be5+ {[%clk 0:02:11.6]} 34. g3 {[%clk 0:00:20.2]} 34...
Ne3 {[%clk 0:02:09]} 35. f4 {[%clk 0:00:20.5]} 35... Bb2 {[%clk 0:02:09.4]} 36.
a4 {[%clk 0:00:17.1]} 36... Bc3 {[%clk 0:02:07.5]} 37. Kg1 {[%clk 0:00:13.4]}
37... Ke4 {[%clk 0:02:07.9]} 38. Kf2 {[%clk 0:00:13.1]} 38... Nf5 {[%clk
0:01:59.8]} 39. g4 {[%clk 0:00:10.5]} 39... hxg4 {[%clk 0:01:56.8]} 40. hxg4
{[%clk 0:00:12.4]} 40... Ne3 {[%clk 0:01:54.6]} 41. Kg3 {[%clk 0:00:06.4]} 41...
Be1+ {[%clk 0:01:55.2]} 42. Kh3 {[%clk 0:00:07.8]} 42... Kf3 {[%clk 0:01:48.2]}
43. f5 {[%clk 0:00:07.4]} 43... g5 {[%clk 0:01:47.9]} 44. Bh6 {[%clk 0:00:07.7]}
44... Nxg4 {[%clk 0:01:43.9]} 45. Bxg5 {[%clk 0:00:08.4]} 45... Bg3 {[%clk
0:01:44.6]} 46. Be3 {[%clk 0:00:05.1]} 46... Nxe3 {[%clk 0:01:45.7]} 47. f6
{[%clk 0:00:05]} 47... Nd1 {[%clk 0:01:47.6]} 48. f7 {[%clk 0:00:05.8]} 48...
Nf2# {[%clk 0:01:49.5]} 0-1

[Event "*** Titled Tuesday 3|2 Blitz"]
[Site "Chess.com"]
[Date "2015.03.03"]
[Round "8"]
[White "Malev212"]
[Black "pedromartinez91"]
[Result "1-0"]
[WhiteElo "2107"]
[BlackElo "2160"]
[TimeControl "180+2"]
[EndTime "12:42:24 PST"]
[Termination "Malev212 won by resignation"]

1. d4 {[%clk 0:01:42.9]} 1... d5 {[%clk 0:02:57.3]} 2. c4 {[%clk 0:01:43.4]}
2... dxc4 {[%clk 0:02:58.4]} 3. e3 {[%clk 0:01:43.7]} 3... e5 {[%clk 0:02:58.7]}
4. Bxc4 {[%clk 0:01:44.2]} 4... exd4 {[%clk 0:02:59.5]} 5. Qb3 {[%clk
0:01:43.8]} 5... Qe7 {[%clk 0:02:58.6]} 6. Nf3 {[%clk 0:01:29.8]} 6... Nc6
{[%clk 0:02:59.5]} 7. O-O {[%clk 0:01:28.9]} 7... d3 {[%clk 0:02:42.2]} 8. Nc3
{[%clk 0:01:27]} 8... Qd7 {[%clk 0:02:36.2]} 9. Bb5 {[%clk 0:01:22]} 9... Bd6
{[%clk 0:02:33.4]} 10. e4 {[%clk 0:01:19.7]} 10... Nge7 {[%clk 0:02:28.2]} 11.
Rd1 {[%clk 0:01:18.7]} 11... O-O {[%clk 0:02:27.9]} 12. Bxd3 {[%clk 0:01:15.3]}
12... Qe6 {[%clk 0:02:10.4]} 13. Nb5 {[%clk 0:01:09.4]} 13... Ne5 {[%clk
0:01:54.8]} 14. Nxe5 {[%clk 0:01:02.6]} 14... Bxe5 {[%clk 0:01:55.3]} 15. Qxe6
{[%clk 0:01:00.3]} 15... fxe6 {[%clk 0:01:56.1]} 16. f4 {[%clk 0:00:54.3]} 16...
Bxf4 {[%clk 0:01:49.8]} 17. Bxf4 {[%clk 0:00:54.2]} 17... Rxf4 {[%clk
0:01:51.3]} 18. Nxc7 {[%clk 0:00:54.4]} 18... Rb8 {[%clk 0:01:52.9]} 19. Bc4
{[%clk 0:00:53]} 19... Rxe4 {[%clk 0:01:42.8]} 20. Rd8+ {[%clk 0:00:52.2]} 20...
Kf7 {[%clk 0:01:43.7]} 21. Rf1+ {[%clk 0:00:45.4]} 21... Nf5 {[%clk 0:01:26]}
22. Bxe6+ {[%clk 0:00:33.3]} 22... Ke7 {[%clk 0:01:18.1]} 23. Rxc8 {[%clk
0:00:28.5]} 23... Rxc8 {[%clk 0:01:14.2]} 24. Bxf5 {[%clk 0:00:27.5]} 24... Rc4
{[%clk 0:00:56.9]} 25. Bxc8 {[%clk 0:00:20.3]} 25... Rxc7 {[%clk 0:00:57.6]} 26.
Bf5 {[%clk 0:00:21]} 26... g6 {[%clk 0:00:58.9]} 27. Be4 {[%clk 0:00:22]} 27...
Rc4 {[%clk 0:00:59.3]} 28. Bxb7 {[%clk 0:00:21.9]} 28... Rb4 {[%clk 0:01:00.6]}
29. Bd5 {[%clk 0:00:22.8]} 29... Rxb2 {[%clk 0:01:01.7]} 30. Bb3 {[%clk
0:00:23.6]} 30... Kd6 {[%clk 0:01:01.2]} 31. Rf7 {[%clk 0:00:23.7]} 31... h5
{[%clk 0:01:00.4]} 32. Rxa7 {[%clk 0:00:24.2]} 32... Ke5 {[%clk 0:01:01.3]} 33.
h3 {[%clk 0:00:24.9]} 33... Kf4 {[%clk 0:01:01.5]} 34. Kh2 {[%clk 0:00:25.9]}
34... h4 {[%clk 0:01:02.1]} 35. Rf7+ {[%clk 0:00:26.3]} 35... Kg5 {[%clk
0:01:03.3]} 36. Rf1 {[%clk 0:00:26.2]} 36... Rd2 {[%clk 0:01:03.3]} 37. Ra1
{[%clk 0:00:26.4]} 37... Rd3 {[%clk 0:01:03.6]} 38. Bd1 {[%clk 0:00:25.6]} 38...
Re3 {[%clk 0:00:58.8]} 39. a4 {[%clk 0:00:25]} 39... Kf4 {[%clk 0:01:00.2]} 40.
Bf3 {[%clk 0:00:24.5]} 40... Re7 {[%clk 0:00:54.1]} 41. a5 {[%clk 0:00:24.8]}
41... Ra7 {[%clk 0:00:55.6]} 42. a6 {[%clk 0:00:25.6]} 42... g5 {[%clk
0:00:56.4]} 43. Bb7 {[%clk 0:00:26]} 43... Ke3 {[%clk 0:00:56.8]} 44. Rc1 {[%clk
0:00:26.2]} 44... Kf4 {[%clk 0:00:56.7]} 45. Rc8 {[%clk 0:00:26.5]} 45... Ke5
{[%clk 0:00:57.9]} 46. Ra8 {[%clk 0:00:27.2]} 46... Rxa8 {[%clk 0:00:58.2]} 47.
Bxa8 {[%clk 0:00:28.2]} 47... Kd6 {[%clk 0:00:58.8]} 48. Bf3 {[%clk 0:00:28.4]}
48... Kc7 {[%clk 0:00:59.8]} 49. a7 {[%clk 0:00:29.3]} 1-0

[Event "*** Titled Tuesday 3|2 Blitz"]
[Site "Chess.com"]
[Date "2015.03.03"]
[Round "8"]
[White "BjarkeSahl"]
[Black "wonderfultime"]
[Result "0-1"]
[WhiteElo "2107"]
[BlackElo "2548"]
[TimeControl "180+2"]
[EndTime "12:42:31 PST"]
[Termination "wonderfultime won by checkmate"]

1. e4 {[%clk 0:03:00]} 1... c5 {[%clk 0:02:58.6]} 2. Nf3 {[%clk 0:03:01]} 2...
Nc6 {[%clk 0:02:52.2]} 3. d4 {[%clk 0:03:01.6]} 3... cxd4 {[%clk 0:02:54.1]} 4.
Nxd4 {[%clk 0:03:02.9]} 4... e5 {[%clk 0:02:55.4]} 5. Nxc6 {[%clk 0:03:00.5]}
5... bxc6 {[%clk 0:02:56.4]} 6. Nc3 {[%clk 0:03:01.5]} 6... Nf6 {[%clk
0:02:56.4]} 7. f4 {[%clk 0:03:02.8]} 7... Qa5 {[%clk 0:02:43.8]} 8. Qf3 {[%clk
0:02:37.4]} 8... d6 {[%clk 0:02:19.6]} 9. f5 {[%clk 0:02:25.3]} 9... Be7 {[%clk
0:02:16.7]} 10. Bd2 {[%clk 0:02:21.7]} 10... Qb6 {[%clk 0:02:14.2]} 11. b3
{[%clk 0:02:16.3]} 11... Bb7 {[%clk 0:02:09]} 12. Bd3 {[%clk 0:02:15.8]} 12...
d5 {[%clk 0:02:05.5]} 13. g4 {[%clk 0:01:53.4]} 13... dxe4 {[%clk 0:01:32.1]}
14. Nxe4 {[%clk 0:01:45.9]} 14... Nxe4 {[%clk 0:01:33.1]} 15. Bxe4 {[%clk
0:01:44.2]} 15... Bh4+ {[%clk 0:01:34.2]} 16. Ke2 {[%clk 0:01:31.4]} 16... Rd8
{[%clk 0:01:29.2]} 17. Rhd1 {[%clk 0:01:31.1]} 17... O-O {[%clk 0:01:06.8]} 18.
Be3 {[%clk 0:01:29.3]} 18... Qa6+ {[%clk 0:01:07.4]} 19. c4 {[%clk 0:01:28.4]}
19... Rxd1 {[%clk 0:01:07.7]} 20. Kxd1 {[%clk 0:01:24.2]} 20... Qa3 {[%clk
0:01:08]} 21. Kc2 {[%clk 0:01:20.7]} 21... Be7 {[%clk 0:01:01]} 22. Bc1 {[%clk
0:01:18.9]} 22... Qa5 {[%clk 0:00:57]} 23. Bb2 {[%clk 0:01:18.1]} 23... Bg5
{[%clk 0:00:52]} 24. Qc3 {[%clk 0:01:02.4]} 24... Qc5 {[%clk 0:00:49.8]} 25. Qf3
{[%clk 0:00:58.6]} 25... Qa5 {[%clk 0:00:39.7]} 26. Bc3 {[%clk 0:00:58.6]} 26...
Qa6 {[%clk 0:00:33.3]} 27. Kb2 {[%clk 0:00:52.2]} 27... Rd8 {[%clk 0:00:31.7]}
28. Rd1 {[%clk 0:00:51]} 28... Qb6 {[%clk 0:00:24.5]} 29. Rxd8+ {[%clk
0:00:39.2]} 29... Qxd8 {[%clk 0:00:26.4]} 30. Bxc6 {[%clk 0:00:32.4]} 30... Bxc6
{[%clk 0:00:21.4]} 31. Qxc6 {[%clk 0:00:33.8]} 31... h6 {[%clk 0:00:23.3]} 32.
Qd5 {[%clk 0:00:34.3]} 32... Qb6 {[%clk 0:00:23.9]} 33. c5 {[%clk 0:00:27.7]}
33... Qa6 {[%clk 0:00:25.1]} 34. Qc4 {[%clk 0:00:19.5]} 34... Qc6 {[%clk
0:00:24.5]} 35. b4 {[%clk 0:00:21.4]} 35... a6 {[%clk 0:00:23.3]} 36. Bxe5
{[%clk 0:00:15]} 36... Qg2+ {[%clk 0:00:24.3]} 37. Kb3 {[%clk 0:00:14.3]} 37...
Qf3+ {[%clk 0:00:25.4]} 38. Bc3 {[%clk 0:00:15.1]} 38... Qd1+ {[%clk 0:00:26.7]}
39. Kb2 {[%clk 0:00:11.7]} 39... Bc1+ {[%clk 0:00:28]} 40. Kb1 {[%clk
0:00:12.6]} 40... Ba3# {[%clk 0:00:29.9]} 0-1

[Event "*** Titled Tuesday 3|2 Blitz"]
[Site "Chess.com"]
[Date "2015.03.03"]
[Round "8"]
[White "petrpalachev"]
[Black "Brandon_Clarke"]
[Result "0-1"]
[WhiteElo "2427"]
[BlackElo "2324"]
[TimeControl "180+2"]
[EndTime "12:42:44 PST"]
[Termination "Brandon_Clarke won by resignation"]

1. d4 {[%clk 0:03:00]} 1... e6 {[%clk 0:02:55.7]} 2. c4 {[%clk 0:02:55.7]} 2...
f5 {[%clk 0:02:55.3]} 3. Nc3 {[%clk 0:02:51.5]} 3... Nf6 {[%clk 0:02:55.7]} 4.
e3 {[%clk 0:02:50.2]} 4... Bb4 {[%clk 0:02:56.1]} 5. Bd3 {[%clk 0:02:51]} 5...
b6 {[%clk 0:02:57.1]} 6. Ne2 {[%clk 0:02:51.1]} 6... Bb7 {[%clk 0:02:58.3]} 7.
O-O {[%clk 0:02:52.5]} 7... O-O {[%clk 0:02:59.5]} 8. a3 {[%clk 0:02:52.8]} 8...
Bd6 {[%clk 0:03:00.1]} 9. f3 {[%clk 0:02:47.6]} 9... a6 {[%clk 0:03:00.2]} 10.
b4 {[%clk 0:02:46.9]} 10... Qe8 {[%clk 0:03:00.8]} 11. c5 {[%clk 0:02:46.9]}
11... Be7 {[%clk 0:03:01]} 12. Bd2 {[%clk 0:02:46]} 12... Qg6 {[%clk 0:03:00.4]}
13. Nf4 {[%clk 0:02:46.8]} 13... Qf7 {[%clk 0:02:59.2]} 14. cxb6 {[%clk
0:02:44.9]} 14... cxb6 {[%clk 0:02:59.9]} 15. Na4 {[%clk 0:02:35.6]} 15... g5
{[%clk 0:02:56.6]} 16. Nh3 {[%clk 0:02:25.2]} 16... Qh5 {[%clk 0:02:53.8]} 17.
f4 {[%clk 0:02:18.6]} 17... g4 {[%clk 0:02:51.2]} 18. Nf2 {[%clk 0:02:11.6]}
18... Bd8 {[%clk 0:02:34.4]} 19. Qe2 {[%clk 0:01:55.6]} 19... g3 {[%clk
0:02:23]} 20. hxg3 {[%clk 0:01:55.9]} 20... Qg6 {[%clk 0:02:23.7]} 21. g4 {[%clk
0:01:54.6]} 21... Nxg4 {[%clk 0:02:15.3]} 22. Nxg4 {[%clk 0:01:55.1]} 22... Qxg4
{[%clk 0:02:16.1]} 23. Qxg4+ {[%clk 0:01:56.5]} 23... fxg4 {[%clk 0:02:17.4]}
24. e4 {[%clk 0:01:55.9]} 24... d6 {[%clk 0:02:17.7]} 25. Be3 {[%clk 0:01:52.3]}
25... Nd7 {[%clk 0:02:17.7]} 26. Rac1 {[%clk 0:01:48.2]} 26... b5 {[%clk
0:02:18.6]} 27. Nc3 {[%clk 0:01:47.7]} 27... Bb6 {[%clk 0:02:19.4]} 28. g3
{[%clk 0:01:45.9]} 28... e5 {[%clk 0:02:18.9]} 29. Nd1 {[%clk 0:01:07.1]} 29...
exd4 {[%clk 0:02:16.8]} 30. Bd2 {[%clk 0:01:04.2]} 30... Rfe8 {[%clk 0:02:15.6]}
31. Nf2 {[%clk 0:01:05.4]} 31... Nf6 {[%clk 0:02:13.4]} 32. Rfe1 {[%clk
0:01:05.1]} 32... h5 {[%clk 0:02:13.2]} 33. e5 {[%clk 0:00:53.6]} 33... dxe5
{[%clk 0:02:13.6]} 34. fxe5 {[%clk 0:00:47.3]} 34... Nd7 {[%clk 0:02:14.3]} 35.
Bf4 {[%clk 0:00:48.2]} 35... Nf8 {[%clk 0:02:13.1]} 36. Ne4 {[%clk 0:00:46.2]}
36... Bxe4 {[%clk 0:01:54.2]} 37. Bxe4 {[%clk 0:00:46.7]} 37... Rac8 {[%clk
0:01:54.9]} 38. Bf5 {[%clk 0:00:36.4]} 38... Rc3 {[%clk 0:01:47.6]} 39. Rxc3
{[%clk 0:00:18.2]} 39... dxc3+ {[%clk 0:01:46.9]} 40. Be3 {[%clk 0:00:13.4]}
40... Rxe5 {[%clk 0:01:46.5]} 41. Bxb6 {[%clk 0:00:10.5]} 41... Rxe1+ {[%clk
0:01:46.6]} 42. Kf2 {[%clk 0:00:12.4]} 42... Re7 {[%clk 0:01:40]} 43. Bc2 {[%clk
0:00:04.4]} 43... Nd7 {[%clk 0:01:40.1]} 44. Bd4 {[%clk 0:00:04.6]} 44... Nf8
{[%clk 0:01:33.8]} 45. Bb3+ {[%clk 0:00:04.4]} 45... Kh7 {[%clk 0:01:32.7]} 46.
Bxc3 {[%clk 0:00:04.4]} 46... Ng6 {[%clk 0:01:34.1]} 47. Bf6 {[%clk 0:00:04.4]}
47... Re8 {[%clk 0:01:33.8]} 48. Bd4 {[%clk 0:00:02.4]} 48... Ne5 {[%clk
0:01:32.8]} 49. Bc2+ {[%clk 0:00:03.2]} 49... Kh6 {[%clk 0:01:31.8]} 50. Be3+
{[%clk 0:00:03.9]} 50... Kg7 {[%clk 0:01:33.1]} 51. Bd4 {[%clk 0:00:05.3]} 51...
Kf6 {[%clk 0:01:33.3]} 52. Ke3 {[%clk 0:00:05.1]} 52... Kg5 {[%clk 0:01:34.2]}
53. Kf2 {[%clk 0:00:03.9]} 53... Nc4 {[%clk 0:01:35]} 54. a4 {[%clk 0:00:03]}
54... Rf8+ {[%clk 0:01:33.8]} 55. Ke2 {[%clk 0:00:03.4]} 55... Re8+ {[%clk
0:01:33.9]} 56. Kf2 {[%clk 0:00:04.4]} 56... Rd8 {[%clk 0:01:35.3]} 57. Bc5
{[%clk 0:00:04]} 57... Rd2+ {[%clk 0:01:35.7]} 58. Ke1 {[%clk 0:00:04.4]} 58...
Rxc2 {[%clk 0:01:37]} 59. axb5 {[%clk 0:00:05.8]} 59... axb5 {[%clk 0:01:38.1]}
0-1